fUSD/lending_fUSD_20250117
["ID","MTS","AMOUNT","RATE_DAILY","PERIOD"]
[349267612,1737084655266,-4505.5,0.00027397,3]
[349267613,1737084655276,-3094.06,0.00027397,3]
[349267614,1737084655285,-2132.22,0.00027397,3]
[349267615,1737084655295,-4505.5,0.00027397,3]
[349267616,1737084655305,-500.0,0.00027397,3]
[349267617,1737084655315,-3094.06,0.00027397,3]
[349267618,1737084655325,-2132.22,0.00027397,3]
[349267619,1737084655336,-4505.5,0.00027397,3]
[349267620,1737084655346,-3094.06,0.00027397,3]
[349267621,1737084655356,-2132.22,0.00027397,3]
[349267622,1737084655365,-4505.5,0.00027397,3]
[349267623,1737084655375,-3094.06,0.00027397,3]
[349267624,1737084655384,-2132.22,0.00027397,3]
[349267625,1737084655394,-4505.5,0.00027397,3]
[349267626,1737084655404,-2132.22,0.00027397,3]
[349267627,1737084655413,-3094.06,0.00027397,3]
[349267628,1737084655423,-4505.5,0.00027397,3]
[349267629,1737084655433,-2132.22,0.00027397,3]
[349267630,1737084655443,-3094.06,0.00027397,3]
[349267631,1737084655453,-4505.5,0.00027397,3]
[349267632,1737084655462,-2132.22,0.00027397,3]
[349267633,1737084655472,-3094.06,0.00027397,3]
[349267634,1737084655482,-4505.5,0.00027397,3]
[349267635,1737084655491,-2132.22,0.00027397,3]
[349267636,1737084655501,-3094.06,0.00027397,3]
[349267637,1737084655511,-4505.5,0.00027397,3]
[349267638,1737084655521,-1004.89631217,0.00027397,3]
[349267639,1737084655531,-2132.22,0.00027397,3]
[349267640,1737084655542,-3094.06,0.00027397,3]
[349267641,1737084655552,-500.0,0.00027397,3]
[349267642,1737084655562,-4505.5,0.00027397,3]
[349267643,1737084655572,-2132.42155583,0.00027397,3]
[349267644,1737084655586,-3094.06,0.00027397,3]
[349267645,1737084655596,-4505.5,0.00027397,3]
[349267646,1737084655605,-3094.06,0.00027397,3]
[349267647,1737084655615,-4505.5,0.00027397,3]
[349267648,1737084655625,-3094.06,0.00027397,3]
[349267649,1737084655635,-4505.66192594,0.00027397,3]
[349267650,1737084655644,-3094.06,0.00027397,3]
[349267651,1737084655654,-212.5808266,0.00027397,3]
[349267652,1737084655664,-3094.06,0.00027397,3]
[349267653,1737084655674,-3094.06,0.00027397,3]
[349267654,1737084655685,-3094.06,0.00027397,3]
[349267655,1737084655695,-3094.06,0.00027397,3]
[349267656,1737084655705,-3094.06,0.00027397,3]
[349267657,1737084655716,-3094.06,0.00027397,3]
[349267658,1737084655726,-3094.06,0.00027397,3]
[349267659,1737084655738,-3094.06980071,0.00027397,3]
[349267660,1737084655748,-500.0,0.00027397,3]
[349267661,1737084655758,-151.0,0.00027397,7]
[349267662,1737084655768,-500.0,0.00027397,3]
[349267663,1737084655778,-504.05217292,0.00027397,3]
[349267664,1737084655788,-151.0,0.00027397,7]
[349267665,1737084655800,-701.21,0.00027397,3]
[349267666,1737084655810,-278.494655,0.00027397,7]
[349267667,1737084655820,-667.24,0.00027397,3]
[349267668,1737084655833,-701.21,0.00027397,3]
[349267669,1737084655845,-667.24,0.00027397,3]
[349267670,1737084655855,-701.21,0.00027397,3]
[349267671,1737084655865,-667.24,0.00027397,3]
[349267672,1737084655875,-701.21,0.00027397,3]
[349267673,1737084655885,-667.24,0.00027397,3]
[349267674,1737084655895,-1179.98,0.00027397,3]
[349267675,1737084655905,-701.21,0.00027397,3]
[349267676,1737084655915,-667.24,0.00027397,3]
[349267677,1737084655925,-701.21,0.00027397,3]
[349267678,1737084655935,-667.24,0.00027397,3]
[349267679,1737084655946,-502.56809078,0.00027397,3]
[349267680,1737084655956,-701.21,0.00027397,3]
[349267681,1737084655966,-667.24,0.00027397,3]
[349267682,1737084655977,-701.21,0.00027397,3]
[349267683,1737084655987,-459.08713582,0.00027397,3]
[349267684,1737084656160,-720.89286418,0.00027397,3]
[349267685,1737084656169,-254.16150082,0.00027397,3]
[349267686,1737084657955,152.45,0.00010137,2]
[349267693,1737085626105,-584.7,0.00024467,2]
[349267694,1737085626127,-734.08228876,0.00024732,2]
[349267695,1737085628099,-233.90931794,0.00024732,2]
[349267696,1737085635587,168.89,0.00010137,2]
[349267698,1737085644099,-168.89,0.00016813,2]
[349267699,1737085644122,-168.89,0.0002349,2]
[349267700,1737085644142,-1920.56822187,0.00024732,2]
[349267701,1737085644163,-1616.86558763,0.00024832,2]
[349267702,1737085644184,-500.0,0.00024932,2]
[349267703,1737085644206,-11142.97695841,0.00025347,2]
[349267709,1737085832402,-5166.0658203,0.00024815,2]
[349267710,1737085832411,-819.45213456,0.00025347,2]
[349267711,1737085832421,-300.0,0.00025978,2]
[349267712,1737085832430,-1412.66234635,0.00025979,2]
[349267713,1737085832441,-1041.76047077,0.00025979,2]
[349267715,1737085832453,-409.97581067,0.00025979,2]
[349267716,1737085832464,-909.54,0.00025979,2]
[349267717,1737085832475,-3262.74950934,0.00025979,2]
[349267718,1737085832695,-3460.84945717,0.00025979,2]
[349267719,1737085832705,-5821.31585284,0.00025998,2]
[349267720,1737085832717,-5639.22278146,0.00025998,2]
[349267721,1737085832726,-1000.0,0.00026016,2]
[349267722,1737085832736,-200.0,0.00026037,2]
[349267723,1737085832746,-250.0,0.00026063,2]
[349267724,1737085832755,-250.0,0.0002607,2]
[349267725,1737085832764,-150.0,0.00026082,2]
[349267726,1737085832774,-166.34,0.00026089,2]
[349267727,1737085832783,-12561.48,0.00026116,2]
[349267728,1737085832792,-1827.86,0.00026175,2]
[349267729,1737085832801,-426.74,0.00026207,120]
[349267730,1737085832810,-1144.24,0.0002621,2]
[349267731,1737085832819,-188.15,0.00026239,2]
[349267732,1737085832828,-215.44,0.00026275,2]
[349267733,1737085832837,-250.0,0.0002632,2]
[349267734,1737085832847,-588.95499607,0.0002642,2]
[349267735,1737085832857,-150.0,0.00026575,2]
[349267736,1737085832866,-150.0,0.00026578,2]
[349267737,1737085832875,-150.0,0.00026578,2]
[349267738,1737085832884,-150.8,0.00026578,2]
[349267739,1737085832893,-152.0,0.00026583,3]
[349267740,1737085832902,-396.64,0.00026646,2]
[349267741,1737085832911,-584.7,0.00026731,2]
[349267742,1737085832921,-290.0440224,0.00026849,4]
[349267743,1737085832929,-550.0,0.00027,2]
[349267744,1737085832938,-194.93,0.00027005,2]
[349267745,1737085832948,-213.0,0.00027024,2]
[349267746,1737085832957,-3857.0309,0.00027024,2]
[349267747,1737085832966,-12772.41895953,0.00027085,2]
[349267748,1737085832976,-3161.398,0.000271,15]
[349267749,1737085832984,-151.691,0.000271,15]
[349267750,1737085832994,-14827.27592657,0.00027118,2]
[349267751,1737085833005,-5399.46644,0.00027118,2]
[349267752,1737085833016,-786.44211909,0.00027118,2]
[349267753,1737085833028,-5023.54568336,0.00027118,2]
[349267754,1737085833039,-3963.26983098,0.00027118,2]
[349267755,1737085833048,-1473.95,0.00027123,30]
[349267756,1737085833057,-150.0,0.00027145,2]
[349267757,1737085833066,-281.22840569,0.00027182,2]
[349267758,1737085833076,-628.66678943,0.00027184,2]
[349267759,1737085833086,-1961.14222177,0.00027192,2]
[349267760,1737085833098,-1647.45629473,0.00027192,2]
[349267761,1737085833110,-1817.26055051,0.00027192,2]
[349267762,1737085833119,-784.6833,0.00027197,2]
[349267763,1737085833129,-285.9099,0.00027197,2]
[349267764,1737085833138,-695.46359291,0.00027198,2]
[349267765,1737085833148,-5425.85906701,0.00027198,2]
[349267766,1737085833158,-4165.803951,0.000272,2]
[349267767,1737085833167,-1000.0,0.00027217,2]
[349267768,1737085833176,-695.46359291,0.00027218,2]
[349267769,1737085833186,-172.0,0.00027219,3]
[349267770,1737085833196,-172.0,0.00027219,3]
[349267771,1737085833206,-773.39286198,0.00027221,2]
[349267772,1737085833215,-628.66678943,0.00027224,2]
[349267773,1737085833224,-233.83318015,0.00027224,2]
[349267774,1737085833234,-695.46359291,0.00027225,2]
[349267775,1737085833243,-233.83318015,0.0002723,2]
[349267776,1737085833252,-2395.59644105,0.00027243,2]
[349267777,1737085833264,-3379.599637,0.00027243,2]
[349267778,1737085833274,-695.46359291,0.00027246,2]
[349267779,1737085833283,-233.83318015,0.0002725,2]
[349267780,1737085833293,-5425.85906701,0.00027251,2]
[349267781,1737085833302,-200.0,0.00027254,2]
[349267782,1737085833312,-695.46359291,0.00027256,2]
[349267783,1737085833321,-943.65378224,0.00027258,2]
[349267786,1737085838240,-25.9899241,0.00027118,2]
[349267787,1737085838343,-15409.84426986,0.00027118,2]
[349267788,1737085838501,-12133.89496981,0.00027118,2]
[349267789,1737085838511,-4482.20528477,0.00027258,2]
[349267790,1737085838521,-438.08,0.0002726,2]
[349267791,1737085838533,-281.22840569,0.00027261,2]
[349267792,1737085838543,-5775.19607805,0.00027263,2]
[349267793,1737085838553,-628.66678943,0.0002727,2]
[349267794,1737085838562,-695.46359291,0.00027271,2]
[349267795,1737085838573,-281.22840569,0.0002728,2]
[349267796,1737085838583,-773.39286198,0.0002729,2]
[349267797,1737085838592,-3169.6553,0.0002729,2]
[349267798,1737085838604,-685.2082,0.0002729,2]
[349267799,1737085838614,-233.83318015,0.00027292,2]
[349267800,1737085838623,-233.83318015,0.00027294,2]
[349267801,1737085838632,-5000.0,0.00027297,2]
[349267802,1737085838642,-313.0834944,0.00027297,2]
[349267803,1737085838652,-1863.0,0.000273,2]
[349267804,1737085838662,-152.20475129,0.000273,2]
[349267805,1737085838672,-188.64031816,0.00027304,2]
[349267806,1737085838682,-773.39286198,0.0002731,2]
[349267807,1737085838691,-281.22840569,0.00027311,2]
[349267808,1737085838701,-773.39286198,0.00027314,2]
[349267809,1737085838710,-773.39286198,0.00027314,2]
[349267810,1737085838719,-233.83318015,0.00027318,2]
[349267811,1737085838729,-5425.85906701,0.00027319,2]
[349267812,1737085838738,-628.66678943,0.00027319,2]
[349267813,1737085838748,-281.22840569,0.00027325,2]
[349267814,1737085838757,-281.22840569,0.00027336,2]
[349267815,1737085838766,-233.83318015,0.00027338,2]
[349267816,1737085838775,-5775.19607805,0.00027339,2]
[349267817,1737085838785,-773.39286198,0.00027343,2]
[349267818,1737085838794,-281.22840569,0.00027343,2]
[349267819,1737085838803,-695.46359291,0.00027343,2]
[349267821,1737085838812,-628.66678943,0.00027344,2]
[349267823,1737085838821,-5775.19607805,0.00027346,2]
[349267825,1737085838830,-628.66678943,0.00027346,2]
[349267828,1737085838839,-628.66678943,0.00027348,2]
[349267831,1737085838850,-5425.85906701,0.00027348,2]
[349267834,1737085838859,-150.0,0.00027352,2]
[349267835,1737085838868,-628.66678943,0.00027356,2]
[349267836,1737085838877,-200.0,0.00027358,2]
[349267837,1737085838887,-5775.19607805,0.00027367,2]
[349267838,1737085838895,-5775.19607805,0.00027372,2]
[349267839,1737085838904,-5425.85906701,0.00027372,2]
[349267840,1737085839082,-164.27627603,0.00027373,2]
[349267841,1737085839091,-177.73460843,0.00027373,2]
[349267842,1737085839101,-506.83401398,0.00027373,2]
[349267843,1737085839110,-151.92695788,0.00027373,2]
[349267844,1737085839119,-159.92311363,0.00027373,2]
[349267845,1737085839128,-159.92312652,0.00027373,2]
[349267846,1737085839137,-500.0,0.00027373,2]
[349267847,1737085839147,-500.18469647,0.00027373,2]
[349267848,1737085839156,-160.3542546,0.00027373,2]
[349267849,1737085839167,-500.0,0.00027373,2]
[349267850,1737085839175,-161.83825343,0.00027373,2]
[349267851,1737085839185,-5775.19607805,0.00027373,2]
[349267852,1737085839193,-773.39286198,0.00027373,2]
[349267853,1737085839202,-281.22840569,0.00027379,2]
[349267854,1737085839211,-191.43,0.0002738,30]
[349267855,1737085839222,-5775.19607805,0.00027382,2]
[349267856,1737085839231,-695.46359291,0.00027383,2]
[349267857,1737085839241,-4628.7399274,0.00027385,2]
[349267858,1737085839251,-300.0,0.00027386,2]
[349267859,1737085839261,-773.39286198,0.00027387,2]
[349267860,1737085839270,-5425.85906701,0.0002739,2]
[349267861,1737085839279,-150.5,0.0002739,30]
[349267862,1737085839288,-30635.28,0.0002739,5]
[349267863,1737085839297,-500.0,0.00027396,2]
[349267864,1737085839306,-500.0,0.00027396,2]
[349267865,1737085839315,-345.54057501,0.00027397,30]
[349267866,1737085839325,-505.09785428,0.00027397,3]
[349267867,1737085839334,-501.91199235,0.00027397,3]
[349267868,1737085839343,-640.42588045,0.00027397,3]
[349267869,1737085839352,-198.33846054,0.00027397,3]
[349267870,1737085839361,-502.61225184,0.00027397,3]
[349267871,1737085839371,-181.73534429,0.00027397,3]
[349267872,1737085839380,-500.0,0.00027397,3]
[349267873,1737085839389,-500.0,0.00027397,3]
[349267874,1737085839402,-505.34313024,0.00027397,3]
[349267875,1737085839412,-502.45356073,0.00027397,3]
[349267876,1737085839424,-505.9931616,0.00027397,3]
[349267877,1737085839434,-500.0,0.00027397,3]
[349267878,1737085839445,-501.34531007,0.00027397,3]
[349267879,1737085839454,-503.99263227,0.00027397,3]
[349267880,1737085839463,-150.0,0.00027397,2]
[349267881,1737085839472,-150.0,0.00027397,2]
[349267882,1737085839482,-150.0,0.00027397,2]
[349267883,1737085839491,-150.0,0.00027397,2]
[349267884,1737085839500,-31802.59947424,0.00027397,2]
[349267885,1737085839514,-8299.28600608,0.00027397,2]
[349267886,1737085839524,-592.76349758,0.00027397,3]
[349267887,1737085839536,-5803.46353643,0.00027397,2]
[349267888,1737085839546,-504.13059251,0.00027397,3]
[349267889,1737085839556,-557.35952534,0.00027397,2]
[349267890,1737085839567,-2368.67081809,0.00027397,2]
[349267891,1737085839579,-393.99767776,0.00027397,2]
[349267892,1737085839588,-157.02369839,0.00027397,3]
[349267893,1737085839598,-500.0,0.00027397,3]
[349267894,1737085839607,-503.48483526,0.00027397,3]
[349267895,1737085839617,-501.42287951,0.00027397,3]
[349267896,1737085839626,-501.58656571,0.00027397,3]
[349267897,1737085839636,-502.0110222,0.00027397,3]
[349267898,1737085839645,-501.0505928,0.00027397,2]
[349267899,1737085839654,-500.98157625,0.00027397,3]
[349267900,1737085839664,-502.92845941,0.00027397,3]
[349267901,1737085839673,-500.0,0.00027397,3]
[349267902,1737085839683,-502.48427733,0.00027397,3]
[349267903,1737085839692,-2000.0,0.00027397,2]
[349267904,1737085839701,-200.0,0.00027397,2]
[349267905,1737085839710,-500.0,0.00027397,3]
[349267906,1737085839720,-500.0,0.00027397,3]
[349267907,1737085839729,-500.0,0.00027397,3]
[349267908,1737085839738,-500.0,0.00027397,3]
[349267909,1737085839747,-500.0,0.00027397,3]
[349267910,1737085839756,-500.0,0.00027397,3]
[349267911,1737085839766,-500.0,0.00027397,3]
[349267912,1737085839776,-568.22503227,0.00027397,3]
[349267913,1737085839785,-500.0,0.00027397,3]
[349267914,1737085839794,-526.03348284,0.00027397,3]
[349267915,1737085839803,-500.0,0.00027397,3]
[349267916,1737085839812,-500.0,0.00027397,3]
[349267917,1737085839821,-520.93288934,0.00027397,3]
[349267918,1737085839831,-500.0,0.00027397,3]
[349267919,1737085839840,-382.49798322,0.00027397,3]
[349267920,1737085839850,-628.93753395,0.00027397,3]
[349267921,1737085839859,-500.0,0.00027397,3]
[349267922,1737085839868,-500.0,0.00027397,3]
[349267923,1737085839877,-214.72423406,0.00027397,3]
[349267924,1737085839886,-500.0,0.00027397,3]
[349267925,1737085839895,-500.0,0.00027397,3]
[349267926,1737085839904,-500.0,0.00027397,3]
[349267927,1737085839913,-500.0,0.00027397,3]
[349267928,1737085839922,-529.36150934,0.00027397,3]
[349267929,1737085839932,-500.0,0.00027397,3]
[349267930,1737085839941,-370.85968036,0.00027397,3]
[349267931,1737085839958,-168.38068728,0.00027397,3]
[349267932,1737085839967,-500.0,0.00027397,3]
[349267933,1737085839978,-518.50135864,0.00027397,3]
[349267934,1737085839987,-500.0,0.00027397,3]
[349267935,1737085839997,-340.39865224,0.00027397,3]
[349267936,1737085840007,-500.0,0.00027397,3]
[349267937,1737085840017,-525.60823401,0.00027397,3]
[349267938,1737085840027,-500.0,0.00027397,3]
[349267939,1737085840036,-500.0,0.00027397,3]
[349267940,1737085840045,-500.0,0.00027397,3]
[349267941,1737085840055,-506.85257755,0.00027397,3]
[349267942,1737085840064,-500.0,0.00027397,3]
[349267943,1737085840074,-500.0,0.00027397,3]
[349267944,1737085840084,-520.52341817,0.00027397,3]
[349267945,1737085840093,-528.16739892,0.00027397,3]
[349267946,1737085840103,-500.0,0.00027397,3]
[349267947,1737085840113,-500.0,0.00027397,3]
[349267948,1737085840123,-500.0,0.00027397,3]
[349267949,1737085840132,-439.18396784,0.00027397,3]
[349267950,1737085840141,-500.0,0.00027397,3]
[349267951,1737085840151,-361.71908235,0.00027397,3]
[349267952,1737085840160,-502.61973753,0.00027397,3]
[349267953,1737085840170,-503.60331159,0.00027397,3]
[349267954,1737085840180,-505.98933499,0.00027397,3]
[349267955,1737085840189,-520.92652701,0.00027397,3]
[349267956,1737085840199,-514.43118739,0.00027397,3]
[349267957,1737085840208,-500.0,0.00027397,3]
[349267958,1737085840217,-500.0,0.00027397,3]
[349267959,1737085840227,-500.0,0.00027397,3]
[349267960,1737085840236,-500.0,0.00027397,3]
[349267961,1737085840246,-526.65208406,0.00027397,3]
[349267962,1737085840255,-500.0,0.00027397,3]
[349267963,1737085840265,-503.88226474,0.00027397,3]
[349267964,1737085840274,-500.0,0.00027397,3]
[349267965,1737085840283,-500.0,0.00027397,3]
[349267966,1737085840293,-504.29337071,0.00027397,3]
[349267967,1737085840302,-509.12232933,0.00027397,3]
[349267968,1737085840311,-509.34568959,0.00027397,3]
[349267969,1737085840320,-500.0,0.00027397,3]
[349267970,1737085840330,-500.0,0.00027397,3]
[349267971,1737085840339,-500.0,0.00027397,3]
[349267972,1737085840348,-564.39595779,0.00027397,3]
[349267973,1737085840358,-500.0,0.00027397,3]
[349267974,1737085840367,-500.0,0.00027397,3]
[349267975,1737085840376,-500.0,0.00027397,3]
[349267976,1737085840385,-500.0,0.00027397,3]
[349267977,1737085840395,-506.4735112,0.00027397,3]
[349267978,1737085840404,-503.57907068,0.00027397,3]
[349267979,1737085840413,-500.0,0.00027397,3]
[349267980,1737085840422,-500.0,0.00027397,3]
[349267981,1737085840431,-515.25511006,0.00027397,3]
[349267982,1737085840441,-500.0,0.00027397,3]
[349267983,1737085840450,-500.0,0.00027397,3]
[349267984,1737085840460,-500.0,0.00027397,3]
[349267985,1737085840470,-500.0,0.00027397,3]
[349267986,1737085840480,-500.0,0.00027397,3]
[349267987,1737085840489,-486.08834238,0.00027397,3]
[349267988,1737085840499,-500.0,0.00027397,3]
[349267989,1737085840508,-500.0,0.00027397,3]
[349267990,1737085840518,-500.0,0.00027397,3]
[349267991,1737085840530,-500.0,0.00027397,3]
[349267992,1737085840540,-500.0,0.00027397,3]
[349267993,1737085840549,-500.0,0.00027397,3]
[349267994,1737085840558,-367.96155725,0.00027397,3]
[349267995,1737085840568,-506.17057828,0.00027397,3]
[349267996,1737085840579,-500.0,0.00027397,3]
[349267997,1737085840588,-500.0,0.00027397,3]
[349267998,1737085840597,-500.0,0.00027397,3]
[349267999,1737085840609,-307.53383471,0.00027397,3]
[349268000,1737085840619,-500.0,0.00027397,3]
[349268001,1737085840629,-500.0,0.00027397,3]
[349268002,1737085840638,-534.05097957,0.00027397,3]
[349268003,1737085840647,-500.0,0.00027397,3]
[349268004,1737085840656,-500.0,0.00027397,3]
[349268005,1737085840665,-500.0,0.00027397,3]
[349268006,1737085840674,-500.0,0.00027397,3]
[349268007,1737085840683,-506.27291745,0.00027397,3]
[349268008,1737085840692,-500.0,0.00027397,3]
[349268009,1737085840701,-500.0,0.00027397,3]
[349268010,1737085840710,-507.59597302,0.00027397,3]
[349268011,1737085840720,-500.0,0.00027397,3]
[349268012,1737085840732,-506.78947001,0.00027397,3]
[349268013,1737085840741,-500.0,0.00027397,3]
[349268014,1737085840750,-525.78643748,0.00027397,3]
[349268015,1737085840759,-500.0,0.00027397,3]
[349268016,1737085840768,-501.58201843,0.00027397,3]
[349268017,1737085840777,-500.0,0.00027397,3]
[349268018,1737085840787,-62.29527726,0.00027397,3]
[349268019,1737085841072,-335.29980965,0.00027397,3]
[349268020,1737085841082,-500.0,0.00027397,3]
[349268021,1737085841092,-368.57018972,0.00027397,3]
[349268022,1737085841105,-164.93117173,0.00027397,3]
[349268023,1737085841114,-500.0,0.00027397,3]
[349268024,1737085841124,-365.86032403,0.00027397,3]
[349268025,1737085841137,-172.57860279,0.00027397,3]
[349268026,1737085841147,-504.13426915,0.00027397,3]
[349268027,1737085841158,-503.107008,0.00027397,3]
[349268028,1737085841167,-500.0,0.00027397,3]
[349268029,1737085841176,-367.14263721,0.00027397,3]
[349268030,1737085841186,-500.0,0.00027397,3]
[349268031,1737085841195,-500.0,0.00027397,3]
[349268032,1737085841204,-500.0,0.00027397,3]
[349268033,1737085841214,-500.0,0.00027397,3]
[349268034,1737085841223,-338.4815511,0.00027397,3]
[349268035,1737085841235,-161.5184489,0.00027397,3]
[349268036,1737085841244,-127.61629029,0.00027397,3]
[349268037,1737085841255,-313.74690356,0.00027397,3]
[349268038,1737085841266,-58.63680615,0.00027397,3]
[349268039,1737085841275,-241.03680044,0.00027397,3]
[349268040,1737085841284,-519.31319342,0.00027397,3]
[349268041,1737085841295,-0.33676254,0.00027397,3]
[349268042,1737085841304,-556.4695495,0.00027397,3]
[349268043,1737085841314,-416.27368796,0.00027397,3]
[349268044,1737085841326,-83.72631204,0.00027397,3]
[349268045,1737085841335,-504.90186689,0.00027397,3]
[349268046,1737085841344,-514.89304326,0.00027397,3]
[349268047,1737085841355,-517.0655212,0.00027397,3]
[349268048,1737085841364,-500.0,0.00027397,3]
[349268049,1737085841373,-500.0,0.00027397,3]
[349268050,1737085841382,-124.01325661,0.00027397,3]
[349268051,1737085841401,-375.98674339,0.00027397,3]
[349268052,1737085841410,-500.0,0.00027397,3]
[349268053,1737085841419,-500.0,0.00027397,3]
[349268054,1737085841431,-500.0,0.00027397,3]
[349268055,1737085841441,-500.0,0.00027397,3]
[349268056,1737085841450,-500.0,0.00027397,3]
[349268057,1737085841460,-565.75533846,0.00027397,3]
[349268058,1737085841469,-486.17394829,0.00027397,3]
[349268059,1737085841479,-500.0,0.00027397,3]
[349268060,1737085841488,-500.0,0.00027397,3]
[349268061,1737085841497,-500.0,0.00027397,3]
[349268062,1737085841506,-500.0,0.00027397,3]
[349268063,1737085841515,-500.0,0.00027397,3]
[349268064,1737085841524,-500.0,0.00027397,3]
[349268065,1737085841537,-442.2787661,0.00027397,3]
[349268066,1737085841546,-500.0,0.00027397,3]
[349268067,1737085841556,-500.0,0.00027397,3]
[349268068,1737085841565,-500.0,0.00027397,3]
[349268069,1737085841575,-1000.0,0.00027397,10]
[349268070,1737085841584,-1000.0,0.00027397,10]
[349268071,1737085841594,-1000.0,0.00027397,10]
[349268072,1737085841605,-1000.0,0.00027397,10]
[349268073,1737085841614,-1000.0,0.00027397,10]
[349268074,1737085841623,-500.0,0.00027397,3]
[349268075,1737085841632,-500.0,0.00027397,3]
[349268076,1737085841641,-1000.0,0.00027397,10]
[349268077,1737085841650,-500.0,0.00027397,3]
[349268078,1737085841659,-1000.0,0.00027397,10]
[349268079,1737085841669,-1000.0,0.00027397,10]
[349268080,1737085841678,-1000.0,0.00027397,10]
[349268081,1737085841687,-1000.0,0.00027397,10]
[349268082,1737085841698,-500.0,0.00027397,3]
[349268083,1737085841707,-500.0,0.00027397,3]
[349268084,1737085841716,-1473.95,0.00027397,30]
[349268085,1737085841725,-500.0,0.00027397,3]
[349268086,1737085841735,-500.0,0.00027397,3]
[349268087,1737085841744,-500.0,0.00027397,3]
[349268088,1737085841753,-500.0,0.00027397,3]
[349268089,1737085841763,-500.0,0.00027397,3]
[349268090,1737085841772,-500.0,0.00027397,3]
[349268091,1737085841781,-500.0,0.00027397,3]
[349268092,1737085841790,-500.0,0.00027397,3]
[349268093,1737085841799,-500.0,0.00027397,3]
[349268094,1737085841808,-500.0,0.00027397,3]
[349268095,1737085841818,-500.0,0.00027397,3]
[349268096,1737085841827,-500.0,0.00027397,3]
[349268097,1737085841836,-500.0,0.00027397,3]
[349268098,1737085841845,-500.0,0.00027397,3]
[349268099,1737085841855,-500.0,0.00027397,3]
[349268100,1737085841864,-154.411692,0.00027397,7]
[349268101,1737085841873,-183.55,0.00027397,3]
[349268102,1737085841882,-500.0,0.00027397,3]
[349268103,1737085841891,-172.80235796,0.00027397,3]
[349268104,1737085841901,-500.0,0.00027397,3]
[349268105,1737085841910,-500.0,0.00027397,3]
[349268106,1737085841919,-506.8373847,0.00027397,3]
[349268107,1737085841928,-500.0,0.00027397,3]
[349268108,1737085841937,-500.0,0.00027397,3]
[349268109,1737085841947,-500.0,0.00027397,3]
[349268110,1737085841958,-500.0,0.00027397,3]
[349268111,1737085841967,-500.0,0.00027397,3]
[349268112,1737085841976,-500.0,0.00027397,3]
[349268113,1737085841985,-500.0,0.00027397,3]
[349268114,1737085841994,-500.0,0.00027397,3]
[349268115,1737085842003,-500.0,0.00027397,3]
[349268116,1737085842012,-500.0,0.00027397,3]
[349268117,1737085842021,-500.0,0.00027397,3]
[349268118,1737085842031,-522.20906444,0.00027397,3]
[349268119,1737085842040,-500.0,0.00027397,3]
[349268120,1737085842049,-500.0,0.00027397,3]
[349268121,1737085842058,-500.0,0.00027397,3]
[349268122,1737085842067,-500.0,0.00027397,3]
[349268123,1737085842077,-312.72,0.00027397,3]
[349268124,1737085842087,-236.0101807,0.00027397,3]
[349268125,1737085842096,-500.0,0.00027397,3]
[349268126,1737085842106,-507.39083102,0.00027397,3]
[349268127,1737085842115,-500.0,0.00027397,3]
[349268128,1737085842125,-500.0,0.00027397,3]
[349268129,1737085842135,-518.05819237,0.00027397,3]
[349268130,1737085842144,-500.0,0.00027397,3]
[349268131,1737085842153,-500.0,0.00027397,3]
[349268132,1737085842162,-511.54698386,0.00027397,3]
[349268133,1737085842171,-500.0,0.00027397,3]
[349268134,1737085842180,-500.0,0.00027397,3]
[349268135,1737085842189,-500.0,0.00027397,3]